lending/lending_fUSD_20250508
["ID","MTS","AMOUNT","RATE_DAILY","PERIOD"]
[360294494,1746719451379,-151.0,0.00028887,7]
[360294495,1746719451388,-195.95389,0.00028887,7]
[360294496,1746719451398,-195.95389,0.00028887,7]
[360294497,1746719451407,-1000.0,0.00028907,7]
[360294498,1746719451417,-1000.0,0.00028907,7]
[360294499,1746719451426,-1000.0,0.00028907,7]
[360294500,1746719451435,-844.0,0.00028907,7]
[360294501,1746719451444,-150.0,0.00028924,2]
[360294502,1746719451454,-200.0,0.00028931,14]
[360294503,1746719451463,-160.18375718,0.00028932,2]
[360294504,1746719451471,-150.0,0.0002895,2]
[360294505,1746719451481,-2000.0,0.00028962,2]
[360294506,1746719451491,-167.040254,0.0002899,7]
[360294507,1746719451500,-535.1003832,0.00028999,10]
[360294508,1746719451509,-500.0,0.00028999,10]
[360294509,1746719451518,-621.29153296,0.00028999,10]
[360294510,1746719451528,-4543.58342048,0.00029,3]
[360294511,1746719451537,-8049.82,0.00029,2]
[360294512,1746719451546,-3000.0,0.00029,2]
[360294513,1746719451555,-33663.89059972,0.00029,2]
[360294514,1746719451564,-530.02,0.00029,7]
[360294515,1746719451574,-500.0,0.00029,7]
[360294516,1746719451583,-500.0,0.00029,7]
[360294517,1746719451592,-500.0,0.00029,7]
[360294518,1746719451602,-500.0,0.00029,7]
[360294519,1746719451611,-500.0,0.00029,7]
[360294520,1746719451620,-500.0,0.00029,7]
[360294521,1746719451631,-500.0,0.00029,7]
[360294522,1746719451640,-500.0,0.00029,7]
[360294523,1746719451650,-500.0,0.00029,7]
[360294524,1746719451659,-500.0,0.00029,7]
[360294525,1746719451668,-475.57,0.00029,7]
[360294526,1746719451678,-550.0,0.00029,2]
[360294527,1746719451687,-151.0,0.00029,7]
[360294528,1746719451697,-213.199781,0.00029,7]
[360294529,1746719451706,-213.199781,0.00029,7]
[360294530,1746719451715,-242.411256,0.00029,7]
[360294531,1746719451725,-169.039701,0.00029,7]
[360294532,1746719451735,-219.418152,0.00029,7]
[360294533,1746719451744,-1212.947035,0.00029,7]
[360294534,1746719451754,-249.082072,0.00029,7]
[360294535,1746719451763,-219.418152,0.00029,7]
[360294536,1746719451773,-1212.947035,0.00029,7]
[360294537,1746719451782,-249.082072,0.00029,7]
[360294538,1746719451792,-157.003663,0.00029,7]
[360294539,1746719451801,-157.003663,0.00029,7]
[360294540,1746719451811,-151.0,0.00029,7]
[360294541,1746719451820,-151.0,0.00029,7]
[360294542,1746719451829,-151.311881,0.00029,7]
[360294543,1746719451839,-151.311881,0.00029,7]
[360294544,1746719451848,-150.0,0.00029025,2]
[360294545,1746719451858,-150.0,0.00029031,2]
[360294546,1746719451871,-1000.0,0.00029044,7]
[360294547,1746719451881,-1000.0,0.00029044,7]
[360294548,1746719451890,-196.634574,0.00029044,7]
[360294549,1746719451899,-195.95389,0.00029044,7]
[360294550,1746719451909,-195.95389,0.00029044,7]
[360294551,1746719451918,-160.18375718,0.00029068,2]
[360294552,1746719451927,-150.0,0.00029074,2]
[360294553,1746719451937,-150.0,0.00029089,2]
[360294554,1746719451947,-195.95389,0.00029102,7]
[360294555,1746719451956,-195.953895,0.00029102,7]
[360294556,1746719451965,-150.0,0.00029102,2]
[360294557,1746719451974,-150.0,0.0002911,2]
[360294558,1746719451984,-200.814183,0.00029112,7]
[360294559,1746719451995,-151.0,0.00029112,7]
[360294560,1746719452006,-200.814183,0.00029112,7]
[360294561,1746719452019,-151.0,0.00029112,7]
[360294562,1746719452029,-151.0,0.00029112,7]
[360294563,1746719452039,-176.733319,0.00029112,7]
[360294564,1746719452049,-176.733319,0.00029112,7]
[360294565,1746719452059,-150.0,0.00029125,2]
[360294566,1746719452069,-150.0,0.00029132,2]
[360294567,1746719452078,-159.0,0.00029166,3]
[360294568,1746719452088,-267.46074303,0.00029171,2]
[360294569,1746719452098,-1302.0,0.00029178,2]
[360294570,1746719452107,-928.0,0.00029178,2]
[360294571,1746719452117,-798.0,0.00029178,2]
[360294572,1746719452132,-383.214,0.00029178,2]
[360294573,1746719452141,-826.717,0.00029178,2]
[360294574,1746719452151,-153.0,0.00029178,2]
[360294575,1746719452161,-151.0,0.00029178,7]
[360294576,1746719452170,-151.0,0.00029178,7]
[360294577,1746719452179,-151.0,0.00029178,7]
[360294578,1746719452189,-151.0,0.00029178,7]
[360294579,1746719452200,-151.0,0.00029178,7]
[360294580,1746719452209,-151.0,0.00029178,7]
[360294581,1746719452221,-150.0,0.00029189,2]
[360294582,1746719452231,-160.18375718,0.00029205,2]
[360294583,1746719452241,-150.0,0.00029211,2]
[360294584,1746719452251,-150.0,0.00029248,2]
[360294585,1746719452262,-150.0,0.0002926,2]
[360294586,1746719452272,-150.0,0.00029307,2]
[360294587,1746719452281,-160.18375718,0.00029342,2]
[360294588,1746719452292,-150.0,0.0002935,2]
[360294589,1746719452302,-150.0,0.00029351,2]
[360294590,1746719452311,-150.0,0.00029371,2]
[360294591,1746719452321,-150.0,0.00029373,2]
[360294592,1746719452330,-150.0,0.00029418,2]
[360294593,1746719452340,-150.0,0.00029423,2]
[360294594,1746719452351,-150.0,0.00029427,2]
[360294595,1746719452361,-150.0,0.0002944,2]
[360294596,1746719452370,-154.36297733,0.00029461,2]
[360294597,1746719452383,-160.18375718,0.00029479,2]
[360294598,1746719452393,-152.0,0.00029488,5]
[360294599,1746719452403,-5032.70312694,0.0002949,4]
[360294600,1746719452414,-150.0,0.00029493,2]
[360294601,1746719452424,-150.0,0.00029515,2]
[360294602,1746719452434,-150.0,0.00029536,2]
[360294603,1746719452444,-150.0,0.00029537,2]
[360294604,1746719452454,-150.0,0.00029549,2]
[360294605,1746719452464,-150.0,0.00029552,2]
[360294606,1746719452474,-16513.72147654,0.00029557,2]
[360294607,1746719452484,-35674.8567056,0.00029569,2]
[360294608,1746719452493,-6584.1048884,0.00029569,2]
[360294609,1746719452503,-150.0,0.00029578,2]
[360294610,1746719452513,-151.0,0.00029579,7]
[360294611,1746719452522,-352.841271,0.00029579,7]
[360294612,1746719452531,-417.487208,0.00029579,7]
[360294613,1746719452541,-352.841269,0.00029579,7]
[360294614,1746719452552,-417.487199,0.00029579,7]
[360294615,1746719452563,-920.173885,0.00029579,7]
[360294616,1746719452574,-920.173889,0.00029579,7]
[360294617,1746719452585,-615.181611,0.00029579,7]
[360294618,1746719452595,-615.181603,0.00029579,7]
[360294619,1746719452606,-151.0,0.00029579,7]
[360294620,1746719452615,-637.076514,0.00029579,7]
[360294621,1746719452627,-637.076524,0.00029579,7]
[360294622,1746719452637,-151.0,0.00029579,7]
[360294623,1746719452648,-875.541823,0.00029579,7]
[360294624,1746719452659,-756.777036,0.00029579,7]
[360294625,1746719452669,-875.541823,0.00029579,7]
[360294626,1746719452680,-756.777036,0.00029579,7]
[360294627,1746719452690,-187.33,0.00029588,2]
[360294628,1746719452699,-313.65,0.00029588,2]
[360294629,1746719452710,-571.0,0.00029589,2]
[360294630,1746719452720,-571.0,0.00029589,2]
[360294631,1746719452730,-571.0,0.00029589,2]
[360294632,1746719452739,-571.0,0.00029589,2]
[360294633,1746719452749,-571.0,0.00029589,2]
[360294634,1746719452759,-571.0,0.00029589,2]
[360294635,1746719452769,-571.0,0.00029589,2]
[360294636,1746719452778,-571.0,0.00029589,2]
[360294637,1746719452787,-571.0,0.00029589,2]
[360294638,1746719452798,-571.0,0.00029589,2]
[360294639,1746719452807,-571.0,0.00029589,2]
[360294640,1746719452817,-311.0,0.00029589,2]
[360294641,1746719452826,-311.0,0.00029589,2]
[360294642,1746719452836,-311.0,0.00029589,2]
[360294643,1746719452846,-311.0,0.00029589,2]
[360294644,1746719452855,-311.0,0.00029589,2]
[360294645,1746719452866,-311.0,0.00029589,2]
[360294646,1746719452878,-311.0,0.00029589,2]
[360294647,1746719452887,-311.0,0.00029589,2]
[360294648,1746719452898,-311.0,0.00029589,2]
[360294649,1746719452907,-311.0,0.00029589,2]
[360294650,1746719452918,-311.0,0.00029589,2]
[360294651,1746719452927,-311.0,0.00029589,2]
[360294652,1746719452937,-311.0,0.00029589,2]
[360294653,1746719452947,-571.0,0.00029589,2]
[360294654,1746719452957,-571.0,0.00029589,2]
[360294655,1746719452966,-571.0,0.00029589,2]
[360294656,1746719452975,-571.0,0.00029589,2]
[360294657,1746719452985,-571.0,0.00029589,2]
[360294658,1746719452995,-571.0,0.00029589,2]
[360294659,1746719453004,-571.0,0.00029589,2]
[360294660,1746719453013,-571.0,0.00029589,2]
[360294661,1746719453022,-571.0,0.00029589,2]
[360294662,1746719453031,-571.0,0.00029589,2]
[360294663,1746719453042,-571.0,0.00029589,2]
[360294664,1746719453052,-571.0,0.00029589,2]
[360294665,1746719453061,-571.0,0.00029589,2]
[360294666,1746719453070,-571.0,0.00029589,2]
[360294667,1746719453079,-311.0,0.00029589,2]
[360294668,1746719453088,-311.0,0.00029589,2]
[360294669,1746719453098,-311.0,0.00029589,2]
[360294670,1746719453107,-311.0,0.00029589,2]
[360294671,1746719453117,-311.0,0.00029589,2]
[360294672,1746719453128,-311.0,0.00029589,2]
[360294673,1746719453137,-311.0,0.00029589,2]
[360294674,1746719453147,-311.0,0.00029589,2]
[360294675,1746719453157,-311.0,0.00029589,2]
[360294676,1746719453166,-311.0,0.00029589,2]
[360294677,1746719453176,-311.0,0.00029589,2]
[360294678,1746719453185,-311.0,0.00029589,2]
[360294679,1746719453194,-311.0,0.00029589,2]
[360294680,1746719453204,-311.0,0.00029589,2]
[360294681,1746719453216,-150.0,0.00029611,2]
[360294682,1746719453227,-160.18375718,0.00029616,2]
[360294683,1746719453236,-150.0,0.00029624,2]
[360294684,1746719453246,-150.0,0.00029649,2]
[360294685,1746719453256,-188.89241004,0.0002966,2]
[360294686,1746719453266,-150.0,0.00029674,2]
[360294687,1746719453275,-500.0,0.00029679,10]
[360294688,1746719453285,-150.0,0.0002969,2]
[360294689,1746719453296,-500.0,0.00029699,10]
[360294690,1746719453306,-71373.83199104,0.000297,2]
[360294691,1746719453316,-151.0,0.000297,7]
[360294692,1746719453325,-213.199781,0.000297,7]
[360294693,1746719453335,-151.0,0.000297,7]
[360294694,1746719453345,-213.199781,0.000297,7]
[360294695,1746719453355,-219.418152,0.000297,7]
[360294696,1746719453516,-1212.947035,0.000297,7]
[360294697,1746719453526,-249.082072,0.000297,7]
[360294698,1746719453535,-219.418152,0.000297,7]
[360294699,1746719453545,-1212.947035,0.000297,7]
[360294700,1746719453554,-249.082072,0.000297,7]
[360294701,1746719453564,-157.003663,0.000297,7]
[360294702,1746719453573,-157.003663,0.000297,7]
[360294703,1746719453583,-151.0,0.000297,7]
[360294704,1746719453593,-151.0,0.000297,7]
[360294705,1746719453602,-150.0,0.00029706,2]
[360294706,1746719453612,-150.0,0.00029731,2]
[360294707,1746719453621,-200.814183,0.00029735,7]
[360294708,1746719453633,-151.0,0.00029735,7]
[360294709,1746719453643,-200.814183,0.00029735,7]
[360294710,1746719453652,-151.0,0.00029735,7]
[360294711,1746719453662,-151.0,0.00029735,7]
[360294712,1746719453672,-151.0,0.00029735,7]
[360294713,1746719453682,-176.733319,0.00029735,7]
[360294714,1746719453691,-176.733319,0.00029735,7]
[360294715,1746719453702,-875.541823,0.00029741,7]
[360294716,1746719453712,-875.541821,0.00029741,7]
[360294717,1746719453722,-150.0,0.00029747,2]
[360294718,1746719453732,-160.18375718,0.00029753,2]
[360294719,1746719453741,-6989.70306233,0.00029757,2]
[360294720,1746719453752,-150.0,0.00029823,2]
[360294721,1746719453762,-150.0,0.00029827,2]
[360294722,1746719453772,-249.0940805,0.00029831,2]
[360294723,1746719453781,-150.0,0.00029838,2]
[360294724,1746719453791,-150.0,0.00029848,2]
[360294725,1746719453800,-2000.0,0.0002985,2]
[360294726,1746719453809,-2000.0,0.0002985,2]
[360294727,1746719453819,-2000.0,0.0002985,2]
[360294728,1746719453828,-450.0,0.0002985,4]
[360294729,1746719453837,-2054.6449006,0.000299,5]
[360294730,1746719453846,-2000.0,0.000299,2]
[360294731,1746719453856,-2000.0,0.000299,2]
[360294732,1746719453866,-2000.0,0.000299,2]
[360294733,1746719453878,-2000.0,0.000299,2]
[360294734,1746719453888,-2000.0,0.000299,2]
[360294735,1746719453897,-2000.0,0.000299,2]
[360294736,1746719453907,-2000.0,0.000299,2]
[360294737,1746719453916,-2000.0,0.000299,2]
[360294738,1746719453925,-2000.0,0.000299,2]
[360294739,1746719453936,-2000.0,0.000299,2]
[360294740,1746719453945,-2000.0,0.000299,2]
[360294741,1746719453954,-151.0,0.000299,7]
[360294742,1746719453964,-151.0,0.000299,7]
[360294743,1746719453973,-151.311881,0.000299,7]
[360294744,1746719453983,-151.311881,0.000299,7]
[360294745,1746719453992,-150.0,0.00029905,2]
[360294746,1746719454002,-2000.0,0.00029927,4]
[360294747,1746719454011,-1000.0,0.00029942,2]
[360294748,1746719454021,-250.0,0.0002997,2]
[360294749,1746719454030,-453.6529,0.0002997,2]
[360294750,1746719454039,-150.0,0.00029975,2]
[360294751,1746719454048,-150.0,0.00029983,2]
[360294752,1746719454058,-52913.91445714,0.0002999,2]
[360294753,1746719454067,-151.0,0.0002999,7]
[360294754,1746719454076,-151.0,0.0002999,7]
[360294755,1746719454085,-151.0,0.0002999,7]
[360294756,1746719454095,-151.0,0.0002999,7]
[360294757,1746719454104,-151.0,0.0002999,7]
[360294758,1746719454113,-151.0,0.0002999,7]
[360294759,1746719454123,-1155.68706729,0.00029998,2]
[360294760,1746719454134,-205.9897331,0.00029998,2]
[360294761,1746719454144,-91200.38100046,0.00029999,2]
[360294762,1746719454689,-91011.29795913,0.00029999,2]
[360294763,1746719454705,-3726.01147793,0.00029999,2]
[360294764,1746719454717,-537.63591183,0.00029999,2]
[360294765,1746719454728,-569.1738373,0.00029999,2]
[360294766,1746719454739,-811.78161233,0.00029999,2]
[360294767,1746719454752,-903.87,0.00029999,2]
[360294768,1746719455170,-4158.46578897,0.00029999,2]
[360294769,1746719455181,-2050.6281716,0.00029999,2]
[360294770,1746719455193,-2564.18250494,0.00029999,2]
[360294771,1746719455205,-18359.39280552,0.00029999,2]
[360294772,1746719455219,-9965.03820578,0.00029999,2]
[360294773,1746719455234,-741.160012,0.00029999,2]
[360294774,1746719455245,-254795.45152121,0.00029999,2]
[360294775,1746719455255,-69154.21090563,0.00029999,2]
[360294776,1746719455265,-200.814183,0.00029999,7]
[360294777,1746719455273,-151.0,0.00029999,7]
[360294778,1746719455283,-200.814183,0.00029999,7]
[360294779,1746719455294,-191.50607726,0.00029999,2]
[360294780,1746719455304,-647.16785102,0.00029999,2]
[360294781,1746719455313,-199.76582051,0.00029999,2]
[360294782,1746719455323,-500.0,0.00029999,2]
[360294783,1746719455333,-500.0,0.00029999,2]
[360294784,1746719455344,-500.0,0.00029999,2]
[360294785,1746719455353,-500.0,0.00029999,2]
[360294786,1746719455364,-500.0,0.00029999,2]
[360294787,1746719455374,-500.0,0.00029999,2]
[360294788,1746719455387,-500.0,0.00029999,2]
[360294789,1746719455397,-500.0,0.00029999,2]
[360294790,1746719455407,-500.0,0.00029999,2]
[360294791,1746719455416,-500.0,0.00029999,2]
[360294792,1746719455426,-500.0,0.00029999,2]
[360294793,1746719455435,-500.0,0.00029999,2]
[360294794,1746719455445,-500.0,0.00029999,2]
[360294795,1746719455455,-500.0,0.00029999,2]
[360294796,1746719455464,-500.0,0.00029999,2]
[360294797,1746719455474,-500.0,0.00029999,2]
[360294798,1746719455484,-500.0,0.00029999,2]
[360294799,1746719455494,-500.0,0.00029999,2]
[360294800,1746719455505,-238.768493,0.00029999,7]
[360294801,1746719455515,-500.0,0.00029999,2]
[360294802,1746719455526,-500.0,0.00029999,2]
[360294803,1746719455535,-500.0,0.00029999,2]
[360294804,1746719455545,-500.0,0.00029999,2]
[360294805,1746719455554,-500.0,0.00029999,2]
[360294806,1746719455564,-500.0,0.00029999,2]
[360294807,1746719455574,-419.68545961,0.00029999,2]
[360294808,1746719455584,-500.0,0.00029999,2]
[360294809,1746719455594,-500.0,0.00029999,2]
[360294810,1746719455604,-151.0,0.00029999,7]
[360294811,1746719455614,-151.0,0.00029999,7]
[360294812,1746719455623,-176.733319,0.00029999,7]
[360294813,1746719455635,-176.733319,0.00029999,7]
[360294814,1746719455645,-150.0,0.00029999,2]
[360294815,1746719455655,-242.748192,0.00029999,7]
[360294816,1746719455664,-213.199781,0.00029999,7]
[360294817,1746719455675,-151.0,0.00029999,7]
[360294818,1746719455686,-213.199781,0.00029999,7]
[360294819,1746719455695,-219.418152,0.00029999,7]
[360294820,1746719455706,-1212.947035,0.00029999,7]
[360294821,1746719455716,-249.082072,0.00029999,7]
[360294822,1746719455725,-219.418152,0.00029999,7]
[360294823,1746719455735,-1212.947035,0.00029999,7]
[360294824,1746719455745,-249.082072,0.00029999,7]
[360294825,1746719455755,-157.003663,0.00029999,7]
[360294826,1746719455764,-157.003663,0.00029999,7]
[360294827,1746719455774,-151.0,0.00029999,7]
[360294828,1746719455783,-500.0,0.00029999,2]
[360294829,1746719455793,-474.02753914,0.00029999,2]
[360294830,1746719455803,-500.0,0.00029999,2]
[360294831,1746719455813,-151.0,0.00029999,7]
[360294832,1746719455824,-151.0,0.00029999,7]
[360294833,1746719455833,-274.10293658,0.00029999,2]
[360294834,1746719455843,-500.0,0.00029999,2]
[360294835,1746719455852,-500.0,0.00029999,2]
[360294836,1746719455862,-500.0,0.00029999,2]
[360294837,1746719455873,-267.16352648,0.00029999,2]
[360294838,1746719455884,-1484.62508972,0.00029999,2]
[360294839,1746719455894,-500.0,0.00029999,2]
[360294840,1746719455903,-500.0,0.00029999,2]
[360294841,1746719455914,-208.43866903,0.00029999,2]
[360294842,1746719455927,-291.56133097,0.00029999,2]
[360294843,1746719455936,-310.59133846,0.00029999,2]
[360294844,1746719455948,-189.40866154,0.00029999,2]
[360294845,1746719455959,-500.0,0.00029999,2]
[360294846,1746719455968,-1484.62508972,0.00029999,2]
[360294847,1746719455978,-207.1127459,0.00029999,2]
[360294848,1746719455988,-500.0,0.00029999,2]
[360294849,1746719455999,-500.0,0.00029999,2]
[360294850,1746719456010,-141.29165862,0.00029999,2]
[360294851,1746719456021,-1343.3334311,0.00029999,2]
[360294852,1746719456031,-588.67030102,0.00029999,2]
[360294853,1746719456040,-500.0,0.00029999,2]
[360294854,1746719456050,-1484.62508972,0.00029999,2]
[360294855,1746719456060,-500.0,0.00029999,2]
[360294856,1746719456069,-500.0,0.00029999,2]
[360294857,1746719456079,-500.0,0.00029999,2]
[360294858,1746719456088,-8.27588093,0.00029999,2]
[360294859,1746719456100,-479.48678608,0.00029999,2]
[360294860,1746719456112,-262.86340872,0.00029999,2]
[360294861,1746719456123,-733.99901399,0.00029999,2]
[360294862,1746719456135,-500.0,0.00029999,2]
[360294863,1746719456144,-500.0,0.00029999,2]
[360294864,1746719456154,-1484.62508972,0.00029999,2]
[360294865,1746719456163,-1484.62508972,0.00029999,2]
[360294866,1746719456173,-1484.62508972,0.00029999,2]
[360294867,1746719456183,-1484.62508972,0.00029999,2]
[360294868,1746719456193,-1484.62508972,0.00029999,2]
[360294869,1746719456202,-1484.62508972,0.00029999,2]
[360294870,1746719456214,-1484.62508972,0.00029999,2]
[360294871,1746719456224,-1484.62508972,0.00029999,2]
[360294872,1746719456234,-1484.62508972,0.00029999,2]
[360294873,1746719456244,-1484.62508972,0.00029999,2]
[360294874,1746719456254,-1484.62508972,0.00029999,2]
[360294875,1746719456263,-1484.62508972,0.00029999,2]
[360294876,1746719456273,-1484.62508972,0.00029999,2]
[360294877,1746719456283,-1484.62508972,0.00029999,2]
[360294878,1746719456295,-1484.62508972,0.00029999,2]
[360294879,1746719456305,-1484.62508972,0.00029999,2]
[360294880,1746719456314,-1484.62508972,0.00029999,2]
[360294881,1746719456324,-1484.62508972,0.00029999,2]
[360294882,1746719456333,-1484.62508972,0.00029999,2]
[360294883,1746719456343,-1484.62508972,0.00029999,2]
[360294884,1746719456353,-1484.62508972,0.00029999,2]
[360294885,1746719456362,-1484.62508972,0.00029999,2]
[360294886,1746719456372,-1484.62508972,0.00029999,2]
[360294887,1746719456383,-1484.62508972,0.00029999,2]
[360294888,1746719456393,-1484.62508972,0.00029999,2]
[360294889,1746719456403,-1484.62508972,0.00029999,2]
[360294890,1746719456412,-1484.62508972,0.00029999,2]
[360294891,1746719456422,-1484.62508972,0.00029999,2]
[360294892,1746719456431,-1484.62508972,0.00029999,2]
[360294893,1746719456440,-1484.62508972,0.00029999,2]
[360294894,1746719456450,-151.311881,0.00029999,7]
[360294895,1746719456459,-151.311876,0.00029999,7]
[360294896,1746719456469,-1854.10886091,0.00029999,2]
[360294897,1746719456478,-1854.10886091,0.00029999,2]
[360294898,1746719456488,-1854.10886091,0.00029999,2]
[360294899,1746719456497,-1854.10886091,0.00029999,2]
[360294900,1746719456507,-1854.10886091,0.00029999,2]
[360294901,1746719456516,-1145.30164776,0.00029999,2]
[360294902,1746719456528,-708.80721315,0.00029999,2]
[360294903,1746719456538,-1854.10886091,0.00029999,2]
[360294904,1746719456547,-1854.10886091,0.00029999,2]
[360294905,1746719456558,-1854.10886091,0.00029999,2]
[360294906,1746719456567,-1854.10886091,0.00029999,2]
[360294907,1746719456577,-1854.10886091,0.00029999,2]
[360294908,1746719456587,-1854.10886091,0.00029999,2]
[360294909,1746719456597,-1854.10886091,0.00029999,2]
[360294910,1746719456606,-1854.10886091,0.00029999,2]
[360294911,1746719456616,-1854.10886091,0.00029999,2]
[360294912,1746719456627,-1854.10886091,0.00029999,2]
[360294913,1746719456638,-1854.10886091,0.00029999,2]
[360294914,1746719456649,-1854.10886091,0.00029999,2]
[360294915,1746719456660,-1854.10886091,0.00029999,2]
[360294916,1746719456669,-1854.10886091,0.00029999,2]
[360294917,1746719456679,-1854.10886091,0.00029999,2]
[360294918,1746719456689,-1854.10886091,0.00029999,2]
[360294919,1746719456699,-1854.10886091,0.00029999,2]
[360294920,1746719456709,-1854.10886091,0.00029999,2]
[360294921,1746719456718,-1854.10886091,0.00029999,2]
[360294922,1746719456728,-1854.10886091,0.00029999,2]
[360294923,1746719456737,-1854.10886091,0.00029999,2]
[360294924,1746719456747,-1854.10886091,0.00029999,2]
[360294925,1746719456757,-1815.54339659,0.00029999,2]
[360294926,1746719456766,-1234.71931615,0.00029999,2]
[360294927,1746719456795,-580.82408044,0.00029999,2]
[360294928,1746719456805,-1815.54339659,0.00029999,2]
[360294929,1746719456815,-1815.54339659,0.00029999,2]
[360294930,1746719456825,-1306.07861388,0.00029999,2]
[360294957,1746719678114,166.0,0.00030137,120]
[360294958,1746719739775,450.0,0.00029589,30]
[360294959,1746719780795,250.0,0.00017,2]
[360294960,1746719781804,300.0,0.00019,2]
[360294961,1746719893684,165.70471,0.00029999,45]
[360294962,1746719916677,881.89,0.00018043,2]
[360294963,1746719942600,500.0,0.0003,30]
[360294968,1746720151634,772.0,0.0003,120]
[360294971,1746720547510,500.0,0.0003,30]
[360294987,1746720631804,-201.14553215,0.0001986,2]
[360294988,1746720631814,-125.1458163,0.00019949,2]
[360294989,1746720631825,-25.8541837,0.00019949,2]
[360294990,1746720631834,-151.0,0.00019949,2]
[360294991,1746720631844,-200.0,0.00019955,2]
[360294992,1746720631853,-450.82810277,0.00019959,2]
[360294993,1746720631865,-749.17189723,0.00019959,2]
[360294994,1746720631875,-300.0,0.00019959,2]
[360294995,1746720631884,-17983.83146316,0.0001996,2]
[360294996,1746720631896,-106134.3992983,0.0001996,2]
[360294997,1746720631906,-151.0,0.00019961,2]
[360294998,1746720631916,-749.97,0.00019961,2]
[360294999,1746720631926,-929.86,0.00019961,2]
[360295000,1746720631936,-283.83,0.00019961,2]
[360295001,1746720631945,-29625.08,0.00019961,2]
[360295002,1746720631955,-200.0,0.00019986,2]
[360295003,1746720631965,-200.0,0.000201,2]
[360295004,1746720631974,-348.92,0.00020121,2]
[360295005,1746720631984,-881.89,0.00020307,2]
[360295006,1746720631994,-200.0,0.0002051,2]
[360295007,1746720632003,-500.0,0.00020533,2]
[360295008,1746720632013,-599.67561292,0.00020861,2]
[360295009,1746720632022,-2960.0230777,0.000209,4]
[360295010,1746720632032,-207.4,0.00020943,2]
[360295011,1746720632041,-668.65185757,0.00020943,2]
[360295012,1746720632052,-302.26,0.00020961,2]
[360295014,1746720632061,-301.35,0.00020961,2]
[360295016,1746720632071,-303.42,0.00020961,2]
[360295019,1746720632081,-302.91,0.00020961,2]
[360295020,1746720632090,-300.93,0.00020961,2]
[360295022,1746720632100,-303.18,0.00020961,2]
[360295025,1746720632110,-303.3,0.00020961,2]
[360295026,1746720632120,-301.09,0.00020961,2]
[360295028,1746720632129,-303.54,0.00020961,2]
[360295030,1746720632138,-303.9,0.00020961,2]
[360295032,1746720632148,-302.32,0.00020961,2]
[360295034,1746720632158,-300.84,0.00020961,2]
[360295037,1746720632167,-301.54,0.00020961,2]
[360295040,1746720632176,-300.15,0.00020961,2]
[360295042,1746720632186,-303.44,0.00020961,2]
[360295044,1746720632195,-301.29,0.00020961,2]
[360295046,1746720632205,-302.98,0.00020961,2]
[360295048,1746720632214,-303.99,0.00020961,2]
[360295050,1746720632224,-301.59,0.00020961,2]
[360295052,1746720632234,-300.96,0.00020961,2]
[360295054,1746720632244,-302.63,0.00020961,2]
[360295056,1746720632254,-302.62,0.00020961,2]
[360295059,1746720632263,-303.99,0.00020961,2]
[360295060,1746720632273,-305.59,0.00020961,2]
[360295062,1746720632283,-304.15,0.00020961,2]
[360295064,1746720632293,-304.42,0.00020961,2]
[360295066,1746720632302,-303.96,0.00020961,2]
[360295068,1746720632311,-302.89,0.00020961,2]
[360295070,1746720632320,-300.1,0.00020961,2]